fUST/lending_fUST_20251208
["ID","MTS","AMOUNT","RATE_DAILY","PERIOD"]
[397161607,1765153861664,-1166.43,0.00010778,2]
[397161610,1765153861678,-741.01,0.00010778,2]
[397161612,1765153861692,-500.0,0.00010778,2]
[397161615,1765153861706,-500.0,0.00010778,2]
[397161617,1765153861721,-5101.78,0.00010778,2]
[397161620,1765153861738,-2157.21,0.00010778,2]
[397161622,1765153861753,-5148.16,0.00010778,2]
[397161625,1765153861767,-1750.38,0.00010778,2]
[397161627,1765153861780,-2858.89,0.00010778,2]
[397161629,1765153861793,-1495.21,0.00010778,2]
[397161631,1765153861805,-701.75,0.00010778,2]
[397161633,1765153861818,-500.0,0.00010778,2]
[397161634,1765153861830,-500.0,0.00010778,2]
[397161635,1765153861844,-8280.08,0.00010778,2]
[397161636,1765153861856,-500.0,0.0001078,2]
[397161637,1765153861870,-500.0,0.0001078,2]
[397161638,1765153861885,-500.0,0.0001078,2]
[397161639,1765153861898,-500.0,0.0001078,2]
[397161640,1765153861911,-500.0,0.0001078,2]
[397161641,1765153861923,-500.0,0.0001078,2]
[397161642,1765153861936,-759.2,0.0001078,2]
[397161643,1765153861949,-500.0,0.0001078,2]
[397161644,1765153861963,-500.0,0.0001078,2]
[397161645,1765153861976,-500.0,0.0001078,2]
[397161646,1765153861989,-500.0,0.0001078,2]
[397161647,1765153862001,-1036.48,0.0001078,2]
[397161648,1765153862013,-500.0,0.0001078,2]
[397161649,1765153862026,-463.90108023,0.0001078,2]
[397161650,1765153862040,-500.0,0.0001078,2]
[397161651,1765153862053,-500.0,0.0001078,2]
[397161652,1765153862065,-500.0,0.0001078,2]
[397161653,1765153862079,-500.0,0.0001078,2]
[397161655,1765153862091,-200.74156051,0.0001078,2]
[397161657,1765153862104,-500.0,0.0001078,2]
[397161660,1765153862117,-500.0,0.0001078,2]
[397161662,1765153862132,-500.0,0.0001078,2]
[397161665,1765153862148,-500.0,0.0001078,2]
[397161667,1765153862161,-500.0,0.0001078,2]
[397161669,1765153862173,-501.10395164,0.0001078,2]
[397161672,1765153862189,-500.0,0.0001078,2]
[397161674,1765153862203,-1260.24,0.0001078,2]
[397161677,1765153862218,-500.0,0.0001078,2]
[397161679,1765153862232,-500.0,0.0001078,2]
[397161681,1765153862246,-516.02,0.0001078,2]
[397161684,1765153862259,-500.62821414,0.0001078,2]
[397161686,1765153862272,-500.0,0.0001078,2]
[397161688,1765153862285,-500.0,0.0001078,2]
[397161691,1765153862299,-501.22853388,0.0001078,2]
[397161693,1765153862312,-571.37,0.0001078,2]
[397161695,1765153862324,-500.0,0.0001078,2]
[397161698,1765153862337,-500.0,0.0001078,2]
[397161700,1765153862350,-500.0,0.0001078,2]
[397161703,1765153862363,-500.0,0.0001078,2]
[397161705,1765153862376,-501.3851703,0.0001078,2]
[397161707,1765153862390,-534.05,0.0001078,2]
[397161710,1765153862404,-500.0,0.0001078,2]
[397161712,1765153862417,-500.74277601,0.0001078,2]
[397161715,1765153862430,-659.52,0.0001078,2]
[397161717,1765153862443,-495.76708148,0.0001078,2]
[397161719,1765153862457,-990.92,0.0001078,2]
[397161722,1765153862470,-532.12,0.0001078,2]
[397161724,1765153862484,-530.45,0.0001078,2]
[397161726,1765153862498,-500.0,0.0001078,2]
[397161729,1765153862509,-501.04746098,0.0001078,2]
[397161731,1765153862523,-501.81722592,0.0001078,2]
[397161733,1765153862536,-690.97,0.0001078,2]
[397161735,1765153862550,-500.0,0.0001078,2]
[397161738,1765153862563,-502.04099814,0.0001078,2]
[397161740,1765153862577,-555.02,0.0001078,2]
[397161743,1765153862590,-515.23095212,0.0001078,2]
[397161745,1765153862601,-498.09097646,0.0001078,2]
[397161747,1765153862611,-501.21149526,0.0001078,2]
[397161749,1765153862621,-500.0,0.0001078,2]
[397161751,1765153862630,-500.0,0.0001078,2]
[397161753,1765153862640,-500.0,0.0001078,2]
[397161755,1765153862649,-500.0,0.0001078,2]
[397161757,1765153862660,-1625.29,0.0001078,2]
[397161759,1765153862670,-489.21952597,0.0001078,2]
[397161761,1765153862679,-500.0,0.0001078,2]
[397161763,1765153862688,-500.0,0.0001078,2]
[397161765,1765153862698,-500.0,0.0001078,2]
[397161767,1765153862708,-677.6,0.0001078,2]
[397161769,1765153862718,-500.0,0.0001078,2]
[397161771,1765153862729,-878.47,0.0001078,2]
[397161773,1765153862742,-500.0,0.0001078,2]
[397161775,1765153862761,-500.49673127,0.0001078,2]
[397161777,1765153862778,-500.0,0.0001078,2]
[397161779,1765153862787,-500.44592284,0.0001078,2]
[397161781,1765153862796,-500.0,0.0001078,2]
[397161783,1765153862806,-500.71478077,0.0001078,2]
[397161785,1765153862816,-500.40875987,0.0001078,2]
[397161787,1765153862825,-500.42836471,0.0001078,2]
[397161789,1765153862835,-500.62903887,0.0001078,2]
[397161791,1765153862844,-500.0,0.0001078,2]
[397161793,1765153862854,-500.0,0.0001078,2]
[397161795,1765153862866,-1161.87,0.0001078,2]
[397161797,1765153862876,-500.0,0.0001078,2]
[397161799,1765153862885,-500.0,0.0001078,2]
[397161801,1765153862895,-500.0,0.0001078,2]
[397161803,1765153862905,-732.6,0.0001078,2]
[397161838,1765153863249,-501.36402169,0.0001078,2]
[397161841,1765153863270,-500.0,0.0001078,2]
[397161844,1765153863283,-500.0,0.0001078,2]
[397161846,1765153863291,-500.0,0.0001078,2]
[397161848,1765153863301,-500.0,0.0001078,2]
[397161850,1765153863311,-500.0,0.0001078,2]
[397161852,1765153863320,-500.0,0.0001078,2]
[397161854,1765153863329,-700.92,0.0001078,2]
[397161856,1765153863338,-732.82,0.0001078,2]
[397161858,1765153863347,-751.68,0.0001078,2]
[397161860,1765153863356,-500.0,0.0001078,2]
[397161862,1765153863365,-500.0,0.0001078,2]
[397161864,1765153863375,-500.0,0.0001078,2]
[397161866,1765153863384,-501.50906885,0.0001078,2]
[397161868,1765153863395,-500.0,0.0001078,2]
[397161870,1765153863405,-500.0,0.0001078,2]
[397161872,1765153863415,-501.41551059,0.0001078,2]
[397161874,1765153863424,-500.0,0.0001078,2]
[397161876,1765153863433,-500.87947017,0.0001078,2]
[397161878,1765153863442,-500.3870546,0.0001078,2]
[397161880,1765153863451,-500.0,0.0001078,2]
[397161881,1765153863460,-500.0,0.0001078,2]
[397161883,1765153863470,-1482.46,0.0001078,2]
[397161885,1765153863479,-500.0,0.0001078,2]
[397161887,1765153863488,-500.0,0.0001078,2]
[397161889,1765153863498,-500.0,0.0001078,2]
[397161891,1765153863508,-500.0,0.0001078,2]
[397161893,1765153863517,-500.0,0.0001078,2]
[397161895,1765153863528,-500.0,0.0001078,2]
[397161897,1765153863538,-500.0,0.0001078,2]
[397161899,1765153863547,-500.0,0.0001078,2]
[397161901,1765153863557,-500.0,0.0001078,2]
[397161903,1765153863566,-500.0,0.0001078,2]
[397161905,1765153863576,-1481.12,0.0001078,2]
[397161907,1765153863586,-500.0,0.0001078,2]
[397161909,1765153863596,-500.0,0.0001078,2]
[397161911,1765153863606,-738.58,0.0001078,2]
[397161913,1765153863616,-500.0,0.0001078,2]
[397161915,1765153863625,-659.13,0.0001078,2]
[397161917,1765153863638,-500.0,0.0001078,2]
[397161919,1765153863648,-500.0,0.0001078,2]
[397161921,1765153863658,-291.10436414,0.0001078,2]
[397161923,1765153863667,-500.0,0.0001078,2]
[397161925,1765153863677,-500.0,0.0001078,2]
[397161928,1765153863687,-500.0,0.0001078,2]
[397161930,1765153863696,-500.0,0.0001078,2]
[397161932,1765153863708,-500.0,0.0001078,2]
[397161934,1765153863717,-500.0,0.0001078,2]
[397161936,1765153863727,-500.86,0.0001078,2]
[397161937,1765153863736,-500.0,0.0001078,2]
[397161939,1765153863746,-500.0,0.0001078,2]
[397161941,1765153863757,-500.0,0.0001078,2]
[397161943,1765153863767,-500.0,0.0001078,2]
[397161945,1765153863776,-500.0,0.0001078,2]
[397161947,1765153863786,-744.46,0.0001078,2]
[397161949,1765153863795,-2654.04,0.0001078,2]
[397161952,1765153863805,-306.82,0.0001078,2]
[397161953,1765153863815,-500.0,0.0001078,2]
[397161956,1765153863825,-813.18,0.0001078,2]
[397161957,1765153863835,-1896.42,0.0001078,2]
[397161959,1765153863844,-1133.57,0.0001078,2]
[397161961,1765153863853,-500.0,0.0001078,2]
[397161963,1765153863862,-500.0,0.0001078,2]
[397161965,1765153863872,-893.16,0.0001078,2]
[397161968,1765153863885,-500.0,0.0001078,2]
[397161969,1765153863894,-500.0,0.0001078,2]
[397161971,1765153863903,-848.05,0.0001078,2]
[397161973,1765153863914,-1517.48,0.0001078,2]
[397161976,1765153863924,-500.0,0.0001078,2]
[397161978,1765153863934,-675.57,0.0001078,2]
[397161979,1765153863943,-3377.49,0.0001078,2]
[397161981,1765153863952,-13062.21,0.0001078,2]
[397161984,1765153863962,-794.44,0.0001078,2]
[397161986,1765153863972,-3456.82,0.0001078,2]
[397161988,1765153863981,-500.0,0.0001078,2]
[397161989,1765153863991,-803.78,0.0001078,2]
[397161992,1765153864001,-500.0,0.0001078,2]
[397161994,1765153864012,-500.0,0.0001078,2]
[397161996,1765153864021,-500.0,0.0001078,2]
[397161998,1765153864030,-24273.09985227,0.0001078,2]
[397162000,1765153864048,-295.13886484,0.0001078,2]
[397168755,1765153982393,167.86,5.1e-05,2]
[397169195,1765154741119,-396.13110913,7.05e-05,2]
[397169277,1765154829084,-210.0,7.051e-05,2]
[397169278,1765154829110,-344.8145688,7.057e-05,2]
[397169304,1765154840098,-196.1054312,7.057e-05,2]
[397169305,1765154840119,-249.19895522,7.135e-05,2]
[397169306,1765154840142,-1081.85,7.393e-05,2]
[397169307,1765154840163,-1031.23892311,7.729e-05,2]
[397169328,1765154848083,-591.53107689,7.729e-05,2]
[397169329,1765154848106,-268.75715084,8.065e-05,2]
[397169331,1765154853227,-480.25139514,8.065e-05,2]
[397169346,1765154945118,-490.08,7.054e-05,2]
[397169347,1765154945141,-248.51026317,7.222e-05,2]
[397169348,1765154945164,-980.17,7.39e-05,2]
[397169349,1765154945186,-1470.25,7.726e-05,2]
[397169350,1765154945213,-1960.33,8.062e-05,2]
[397169351,1765154945234,-1106.68303938,8.393e-05,2]
[397169354,1765154961106,-93.31696062,8.393e-05,2]
[397169355,1765154961126,-300.0,8.395e-05,2]
[397169356,1765154961148,-513.0,8.396e-05,2]
[397169357,1765154961169,-500.0,8.396e-05,2]
[397169358,1765154961191,-269.5,8.396e-05,2]
[397169359,1765154961462,-2450.42,8.397e-05,2]
[397169360,1765154961483,-2142.54557697,8.498e-05,2]
[397169361,1765154961508,-2503.97449453,8.733e-05,2]
[397169371,1765154974229,-2142.54557697,8.778e-05,2]
[397169372,1765154974248,-2142.54557697,9.057e-05,2]
[397169373,1765154974269,-293.24211054,9.222e-05,2]
[397169374,1765154974290,-1680.0,9.232e-05,2]
[397169375,1765154974310,-420.0,9.235e-05,2]
[397169376,1765154974331,-2142.54557697,9.336e-05,2]
[397169377,1765154974353,-220.99864997,9.383e-05,2]
[397169378,1765154974375,-227.85464673,9.383e-05,2]
[397169379,1765154974396,-500.0,9.383e-05,2]
[397169380,1765154974415,-500.0,9.383e-05,2]
[397169381,1765154974434,-500.0,9.383e-05,2]
[397169382,1765154974455,-4473.61,9.383e-05,2]
[397169383,1765154974474,-1314.49,9.383e-05,2]
[397169384,1765154974492,-783.84,9.383e-05,2]
[397169385,1765154974513,-3079.55166857,9.383e-05,2]
[397169386,1765154974535,-500.0,9.384e-05,2]
[397169387,1765154974554,-500.0,9.384e-05,2]
[397169388,1765154974572,-500.0,9.384e-05,2]
[397169389,1765154974592,-500.0,9.384e-05,2]
[397169390,1765154974614,-555.03,9.384e-05,2]
[397169391,1765154974634,-535.07,9.384e-05,2]
[397169392,1765154974654,-500.0,9.384e-05,2]
[397169393,1765154974673,-1400.91,9.384e-05,2]
[397169394,1765154974695,-500.0,9.384e-05,2]
[397169395,1765154974714,-500.0,9.384e-05,2]
[397169396,1765154974734,-500.0,9.384e-05,2]
[397169397,1765154974754,-778.69,9.384e-05,2]
[397169398,1765154974774,-500.0,9.384e-05,2]
[397169399,1765154974794,-6796.85,9.384e-05,2]
[397169400,1765154974815,-500.0,9.384e-05,2]
[397169401,1765154974835,-500.0,9.384e-05,2]
[397169402,1765154974857,-5650.66,9.384e-05,2]
[397169403,1765154974881,-9271.46,9.384e-05,2]
[397169404,1765154974900,-500.0,9.384e-05,2]
[397169405,1765154974920,-500.0,9.384e-05,2]
[397169406,1765154974943,-1510.06,9.384e-05,2]
[397169407,1765154974961,-220.34436292,9.384e-05,2]
[397169408,1765154974981,-500.0,9.384e-05,2]
[397169409,1765154975008,-812.12,9.384e-05,2]
[397169410,1765154975028,-948.58,9.384e-05,2]
[397169411,1765154975048,-1996.46,9.384e-05,2]
[397169412,1765154975069,-500.0,9.384e-05,2]
[397169413,1765154975089,-500.0,9.384e-05,2]
[397169414,1765154975110,-500.0,9.384e-05,2]
[397169415,1765154975128,-500.0,9.384e-05,2]
[397169416,1765154975147,-500.0,9.384e-05,2]
[397169417,1765154975167,-4555.52,9.384e-05,2]
[397169418,1765154975188,-2012.32,9.384e-05,2]
[397169419,1765154975206,-500.0,9.384e-05,2]
[397169420,1765154975225,-853.09,9.384e-05,2]
[397169421,1765154975245,-500.0,9.384e-05,2]
[397169422,1765154975264,-518.64,9.384e-05,2]
[397169423,1765154975284,-500.0,9.384e-05,2]
[397169424,1765154975302,-500.0,9.384e-05,2]
[397169425,1765154975321,-1651.15,9.384e-05,2]
[397169426,1765154975339,-500.0,9.384e-05,2]
[397169427,1765154975359,-707.21,9.384e-05,2]
[397169428,1765154975378,-7552.03,9.384e-05,2]
[397169429,1765154975397,-593.86,9.384e-05,2]
[397169430,1765154975416,-688.58,9.384e-05,2]
[397169431,1765154975436,-1218.94,9.384e-05,2]
[397169432,1765154975454,-828.0,9.384e-05,2]
[397169433,1765154975472,-500.0,9.384e-05,2]
[397169434,1765154975492,-1250.38,9.384e-05,2]
[397169435,1765154975512,-4419.66,9.384e-05,2]
[397169436,1765154975731,-500.0,9.384e-05,2]
[397169437,1765154975752,-1123.54,9.384e-05,2]
[397169438,1765154975775,-2693.14,9.384e-05,2]
[397169439,1765154975796,-500.0,9.384e-05,2]
[397169440,1765154975814,-500.0,9.384e-05,2]
[397169441,1765154975833,-632.23,9.384e-05,2]
[397169442,1765154975853,-500.0,9.384e-05,2]
[397169443,1765154975872,-1474.06,9.384e-05,2]
[397169444,1765154975892,-500.0,9.384e-05,2]
[397169445,1765154975915,-500.0,9.384e-05,2]
[397169446,1765154975935,-1566.9,9.384e-05,2]
[397169447,1765154975955,-500.0,9.385e-05,2]
[397169448,1765154975975,-1205.72,9.385e-05,2]
[397169449,1765154975993,-1517.1,9.385e-05,2]
[397169450,1765154976012,-500.0,9.385e-05,2]
[397169451,1765154976030,-635.55,9.385e-05,2]
[397169452,1765154976050,-500.0,9.385e-05,2]
[397169453,1765154976069,-651.52,9.385e-05,2]
[397169454,1765154976087,-675.12,9.385e-05,2]
[397169455,1765154976106,-500.0,9.385e-05,2]
[397169456,1765154976125,-573.78,9.385e-05,2]
[397169457,1765154976146,-598.91,9.385e-05,2]
[397169458,1765154976167,-655.06,9.385e-05,2]
[397169459,1765154976188,-500.0,9.385e-05,2]
[397169460,1765154976208,-500.0,9.385e-05,2]
[397169461,1765154976229,-2479.96,9.385e-05,2]
[397169462,1765154976248,-500.0,9.385e-05,2]
[397169463,1765154976267,-500.0,9.385e-05,2]
[397169464,1765154976286,-500.0,9.385e-05,2]
[397169465,1765154976304,-1586.79,9.385e-05,2]
[397169466,1765154976324,-643.25,9.385e-05,2]
[397169467,1765154976343,-500.0,9.385e-05,2]
[397169468,1765154976364,-500.0,9.385e-05,2]
[397169469,1765154976383,-500.0,9.385e-05,2]
[397169470,1765154976405,-500.0,9.385e-05,2]
[397169471,1765154976425,-500.0,9.385e-05,2]
[397169472,1765154976445,-1105.51,9.385e-05,2]
[397169473,1765154976465,-724.64,9.385e-05,2]
[397169474,1765154976486,-1076.28,9.385e-05,2]
[397169475,1765154976506,-626.36,9.385e-05,2]
[397169476,1765154976525,-1053.25,9.385e-05,2]
[397169477,1765154976544,-500.0,9.385e-05,2]
[397169478,1765154976563,-613.59,9.385e-05,2]
[397169479,1765154976585,-1111.7,9.385e-05,2]
[397169480,1765154976611,-1245.12,9.385e-05,2]
[397169481,1765154976632,-500.0,9.385e-05,2]
[397169482,1765154976652,-500.0,9.385e-05,2]
[397169483,1765154976675,-500.0,9.385e-05,2]
[397169484,1765154976694,-2121.65,9.385e-05,2]
[397169485,1765154976714,-1300.08,9.385e-05,2]
[397169486,1765154976737,-1427.87,9.385e-05,2]
[397169487,1765154976759,-1159.43,9.385e-05,2]
[397169488,1765154976777,-500.0,9.385e-05,2]
[397169489,1765154976797,-500.0,9.385e-05,2]
[397169490,1765154976815,-2336.35,9.385e-05,2]
[397169491,1765154976833,-169.776845,9.385e-05,2]
[397169492,1765154976853,-1368.67,9.385e-05,2]
[397169493,1765154976872,-500.0,9.385e-05,2]
[397169494,1765154976892,-856.74,9.385e-05,2]
[397169495,1765154976911,-441.14480585,9.385e-05,2]
[397169496,1765154976931,-1820.2,9.385e-05,2]
[397169497,1765154976952,-508.862523,9.385e-05,2]
[397169498,1765154976971,-500.0,9.385e-05,2]
[397169499,1765154976990,-1511.37,9.385e-05,2]
[397169500,1765154977010,-775.26,9.385e-05,2]
[397169501,1765154977029,-551.29,9.385e-05,2]
[397169502,1765154977048,-2340.81,9.385e-05,2]
[397169503,1765154977068,-533.14,9.385e-05,2]
[397169504,1765154977089,-500.0,9.385e-05,2]
[397169505,1765154977110,-1957.28,9.385e-05,2]
[397169506,1765154977128,-1934.84,9.385e-05,2]
[397169507,1765154977148,-500.0,9.385e-05,2]
[397169508,1765154977168,-3638.15,9.385e-05,2]
[397169509,1765154977188,-558.19,9.385e-05,2]
[397169510,1765154977209,-500.0,9.385e-05,2]
[397169511,1765154977228,-2084.03,9.385e-05,2]
[397169512,1765154977246,-3171.69,9.385e-05,2]
[397169513,1765154977265,-500.0,9.385e-05,2]
[397169514,1765154977285,-1168.73,9.385e-05,2]
[397169515,1765154977305,-500.0,9.385e-05,2]
[397169516,1765154977325,-500.0,9.385e-05,2]
[397169517,1765154977345,-500.0,9.385e-05,2]
[397169518,1765154977365,-500.0,9.385e-05,2]
[397169519,1765154977385,-1749.65,9.385e-05,2]
[397169520,1765154977405,-2895.57,9.385e-05,2]
[397169521,1765154977425,-801.52,9.385e-05,2]
[397169522,1765154977444,-500.0,9.385e-05,2]
[397169523,1765154977463,-1631.19,9.385e-05,2]
[397169524,1765154977483,-500.0,9.385e-05,2]
[397169525,1765154977503,-500.0,9.385e-05,2]
[397169526,1765154977523,-1968.6,9.385e-05,2]
[397169527,1765154977542,-500.0,9.385e-05,2]
[397169528,1765154977562,-615.29,9.385e-05,2]
[397169529,1765154977581,-798.33,9.385e-05,2]
[397169530,1765154977606,-7150.74,9.385e-05,2]
[397169531,1765154977625,-500.0,9.385e-05,2]
[397169532,1765154977646,-500.0,9.385e-05,2]
[397169533,1765154977667,-707.33,9.385e-05,2]
[397169534,1765154977692,-894.02,9.385e-05,2]
[397169535,1765154977715,-500.0,9.385e-05,2]
[397169536,1765154977734,-500.0,9.385e-05,2]
[397169537,1765154977754,-500.0,9.385e-05,2]
[397169538,1765154977774,-1389.34,9.385e-05,2]
[397169539,1765154977793,-3865.16,9.385e-05,2]
[397169540,1765154977812,-500.0,9.385e-05,2]
[397169541,1765154977832,-600.11,9.385e-05,2]
[397169542,1765154977852,-500.0,9.385e-05,2]
[397169543,1765154977872,-1398.47,9.386e-05,2]
[397169544,1765154977892,-4972.66,9.386e-05,2]
[397169545,1765154977913,-15810.23,9.386e-05,2]
[397169546,1765154977934,-2501.53,9.386e-05,2]
[397169547,1765154977954,-4464.05,9.386e-05,2]
[397169548,1765154977973,-1105.09,9.386e-05,2]
[397169549,1765154977993,-1531.58,9.386e-05,2]
[397169550,1765154978012,-1668.09,9.386e-05,2]
[397169551,1765154978033,-2415.02,9.386e-05,2]
[397169552,1765154978055,-2322.29,9.386e-05,2]
[397169553,1765154978075,-781.51,9.386e-05,2]
[397169554,1765154978094,-2955.3,9.386e-05,2]
[397169555,1765154978115,-1659.36,9.386e-05,2]
[397169556,1765154978134,-1327.79,9.386e-05,2]
[397169557,1765154978154,-11429.43,9.386e-05,2]
[397169558,1765154978175,-500.0,9.386e-05,2]
[397169559,1765154978195,-3024.72,9.386e-05,2]
[397169560,1765154978215,-23437.06,9.386e-05,2]
[397169561,1765154978235,-3458.39,9.386e-05,2]
[397169562,1765154978254,-2648.46,9.386e-05,2]
[397169563,1765154978274,-670.52,9.386e-05,2]
[397169564,1765154978294,-500.0,9.386e-05,2]
[397169565,1765154978314,-500.0,9.386e-05,2]
[397169566,1765154978334,-1926.94,9.386e-05,2]
[397169567,1765154978354,-4321.83,9.386e-05,2]
[397169568,1765154978377,-300.0,9.387e-05,2]
[397169569,1765154978399,-300.0,9.387e-05,2]
[397169570,1765154978424,-300.0,9.387e-05,2]
[397169571,1765154978444,-300.0,9.387e-05,2]
[397169572,1765154978466,-300.0,9.387e-05,2]
[397169573,1765154978487,-118.87824008,9.387e-05,2]
[397169574,1765155032512,-364.65,7.064e-05,2]
[397169575,1765155032521,-210.0,7.064e-05,2]
[397169576,1765155032530,-729.31,7.4e-05,2]
[397169577,1765155032540,-1093.96,7.737e-05,2]
[397169578,1765155032550,-1458.61,8.073e-05,2]
[397169579,1765155032559,-1823.27,8.409e-05,2]
[397169580,1765155032568,-1200.0,8.745e-05,2]
[397169581,1765155032578,-2187.92,8.746e-05,2]
[397169582,1765155032587,-300.0,9.081e-05,2]
[397169583,1765155032596,-2552.57,9.082e-05,2]
[397169584,1765155032605,-500.0,9.383e-05,2]
[397169585,1765155032618,-6513.64,9.383e-05,2]
[397169587,1765155032628,-500.0,9.383e-05,2]
[397169589,1765155032637,-8885.15,9.383e-05,2]
[397169591,1765155032646,-500.4715882,9.383e-05,2]
[397169593,1765155032656,-3767.1,9.383e-05,2]
[397169595,1765155032665,-558.4,9.383e-05,2]
[397169597,1765155032674,-269.10702018,9.383e-05,2]
[397169599,1765155032684,-500.0,9.383e-05,2]
[397169601,1765155032694,-500.0,9.384e-05,2]
[397169603,1765155032703,-597.21166011,9.384e-05,2]
[397169605,1765155032712,-1065.38,9.384e-05,2]
[397169607,1765155032721,-500.0,9.384e-05,2]
[397169609,1765155032730,-1245.91,9.384e-05,2]
[397169611,1765155032739,-501.27751811,9.384e-05,2]
[397169613,1765155032748,-501.71690128,9.384e-05,2]
[397169615,1765155032756,-500.0,9.384e-05,2]
[397169616,1765155032765,-2033.25,9.384e-05,2]
[397169617,1765155032775,-500.0,9.384e-05,2]
[397169618,1765155032784,-500.0,9.384e-05,2]
[397169619,1765155032794,-1744.36,9.384e-05,2]
[397169620,1765155032803,-500.0,9.384e-05,2]
[397169621,1765155032812,-500.0,9.385e-05,2]
[397169622,1765155032821,-1887.56,9.385e-05,2]
[397169623,1765155032831,-1343.48,9.385e-05,2]
[397169624,1765155032840,-500.35669888,9.385e-05,2]
[397169625,1765155032849,-1340.2,9.385e-05,2]
[397169626,1765155032859,-500.0,9.385e-05,2]
[397169627,1765155032869,-500.0,9.385e-05,2]
[397169628,1765155032878,-500.0,9.385e-05,2]
[397169629,1765155032887,-500.0,9.385e-05,2]
[397169630,1765155032897,-1615.71,9.385e-05,2]
[397169631,1765155032906,-614.03,9.385e-05,2]
[397169632,1765155032915,-500.0,9.385e-05,2]
[397169633,1765155032924,-500.0,9.385e-05,2]
[397169634,1765155032933,-15151.47,9.385e-05,2]
[397169635,1765155032942,-1020.62,9.385e-05,2]
[397169636,1765155032951,-500.0,9.385e-05,2]
[397169637,1765155032960,-5000.0,9.386e-05,2]
[397169638,1765155032970,-3285.94,9.386e-05,2]
[397169639,1765155032979,-1299.2,9.386e-05,2]
[397169640,1765155032989,-2125.45,9.386e-05,2]
[397169641,1765155032998,-181.12175992,9.387e-05,2]
[397169642,1765155033007,-300.0,9.387e-05,2]
[397169643,1765155033016,-300.0,9.387e-05,2]
[397169644,1765155033026,-300.0,9.387e-05,2]
[397169645,1765155033035,-300.0,9.387e-05,2]
[397169646,1765155033045,-300.0,9.387e-05,2]
[397169647,1765155033055,-300.0,9.387e-05,2]
[397169648,1765155033065,-300.0,9.387e-05,2]
[397169649,1765155033074,-300.0,9.387e-05,2]
[397169650,1765155033083,-300.0,9.387e-05,2]
[397169651,1765155033093,-2917.23,9.419e-05,2]
[397169652,1765155033102,-600.0,9.574e-05,2]
[397169653,1765155033111,-2142.54557697,9.615e-05,2]
[397169654,1765155033121,-1680.0,9.62e-05,2]
[397169655,1765155033130,-500.0,9.657e-05,2]
[397169656,1765155033139,-4473.61,9.657e-05,2]
[397169657,1765155033149,-1314.49,9.657e-05,2]
[397169658,1765155033159,-783.84,9.657e-05,2]
[397169659,1765155033168,-500.0,9.657e-05,2]
[397169660,1765155033178,-6513.64,9.657e-05,2]
[397169661,1765155033187,-500.0,9.657e-05,2]
[397169662,1765155033197,-8885.15,9.657e-05,2]
[397169663,1765155033207,-3767.1,9.657e-05,2]
[397169664,1765155033216,-558.4,9.657e-05,2]
[397169665,1765155033225,-500.0,9.657e-05,2]
[397169666,1765155033235,-500.0,9.658e-05,2]
[397169667,1765155033245,-500.0,9.658e-05,2]
[397169668,1765155033255,-500.0,9.658e-05,2]
[397169669,1765155033264,-500.0,9.658e-05,2]
[397169670,1765155033273,-555.03,9.658e-05,2]
[397169671,1765155033282,-535.07,9.658e-05,2]
[397169672,1765155033292,-500.0,9.658e-05,2]
[397169673,1765155033301,-500.0,9.658e-05,2]
[397169674,1765155033311,-500.0,9.658e-05,2]
[397169676,1765155033320,-778.69,9.658e-05,2]
[397169678,1765155033330,-500.0,9.658e-05,2]
[397169680,1765155033339,-205.96,9.658e-05,2]
[397169682,1765155033348,-500.0,9.658e-05,2]
[397169684,1765155033357,-500.0,9.658e-05,2]